bitfinex/quotes_ETHUSD_20250430
["timestamp","ask_amount","ask_price","bid_price","bid_amount"]
[1746049593167,5.55725407,1799.5,1799.2,5.584]
[1746049594193,5.55741445,1799.4,1799.2,4.784]
[1746049594372,5.55819834,1799.2,1798.9,4.849]
[1746049594569,6.35913152,1799.1,1798.9,4.849]
[1746049594823,5.55864369,1799.0,1798.9,4.849]
[1746049594974,5.55937521,1798.8,1798.6,23.218]
[1746049595174,5.55937521,1798.8,1798.6,4.849]
[1746049595591,5.55937521,1798.8,1798.3,5.6799]
[1746049595592,5.56011827,1798.6,1798.3,5.6799]
[1746049595972,5.56024161,1798.5,1798.3,4.848]
[1746049604008,6.36024179,1798.7,1798.3,4.848]
[1746049604009,6.06419822,1798.8,1798.4,0.8319]
[1746049604208,5.55792005,1799.3,1798.9,5.55889056]
[1746049604407,5.55792005,1799.3,1799.0,5.40488906]
[1746049604943,11.62175175,1799.4,1799.0,10.96335183]
[1746049605139,11.62175175,1799.4,1799.0,16.52176359]
[1746049605318,5.55724864,1799.5,1799.1,5.55816397]
[1746049605520,5.55724864,1799.5,1799.2,1.3877164]
[1746049605725,5.55724864,1799.5,1799.2,0.5558164]
[1746049605926,11.11463335,1799.5,1799.2,0.5558164]
[1746049606129,11.11463335,1799.5,1799.1,5.55828131]
[1746049606449,5.55743637,1799.4,1799.1,5.55828131]
[1746049606751,5.55743637,1799.4,1799.0,11.79524652]
[1746049608051,5.56111667,1798.2,1798.1,3.72143224]
[1746049608248,0.63822167,1798.2,1797.6,4.83786192]
[1746049608449,0.8211,1798.3,1797.6,4.83786192]
[1746049608651,5.56217861,1797.9,1797.7,5.21678353]
[1746049608943,5.56162575,1798.1,1797.7,5.21678353]
[1746049609152,5.56162575,1798.1,1797.7,5.1703787]
[1746049609153,5.56176243,1798.0,1797.7,5.1703787]
[1746049609359,5.56176243,1798.0,1797.7,0.1093787]
[1746049609550,5.56128266,1798.2,1797.8,5.061]
[1746049609854,5.56029547,1798.5,1798.1,0.7801]
[1746049610022,5.56053025,1798.4,1798.1,0.7801]
[1746049610228,5.56053025,1798.4,1798.2,0.1092181]
[1746049610427,5.56053025,1798.4,1798.3,5.062]
[1746049610627,5.56053025,1798.4,1798.3,5.17107678]
[1746049612223,5.56053025,1798.4,1798.3,5.062]
[1746049612522,6.67261282,1798.4,1798.3,5.062]
[1746049613759,5.56053025,1798.4,1798.3,5.062]
[1746049644580,12.45437842,1799.0,1798.6,5.55975798]
[1746049644743,12.45437842,1799.0,1798.7,4.96]
[1746049644950,11.62307842,1799.0,1798.7,4.96]
[1746049649387,5.5588802,1799.0,1798.7,4.96]
[1746049650286,11.11781766,1799.0,1798.7,4.96]
[1746049650481,11.11782017,1799.0,1798.7,4.96]
[1746049650650,5.5588802,1799.0,1798.7,4.96]
[1746049651865,5.55899371,1798.9,1798.7,4.96]
[1746049652464,5.55875755,1799.0,1798.7,4.96]
[1746049653087,11.11766794,1799.0,1798.7,4.96]
[1746049653785,5.55875755,1799.0,1798.7,4.96]
[1746049654154,11.11768415,1799.0,1798.7,4.96]
[1746049654356,5.55875755,1799.0,1798.7,4.96]
[1746049655107,5.55906479,1798.9,1798.7,4.96]
[1746049655256,5.55926173,1798.8,1798.7,4.96]
[1746049671412,6.06419822,1799.0,1798.7,4.96]
[1746049671712,11.6230635,1799.0,1798.7,4.96]
[1746049671866,5.55899803,1798.9,1798.7,4.96]
[1746049679016,5.55926173,1798.8,1798.7,4.96]
[1746049679615,5.55926173,1798.8,1798.7,4.875]
[1746049679910,5.55987045,1798.7,1798.3,23.93362952]
[1746049680097,11.1197409,1798.7,1798.4,4.875]
[1746049680680,5.55987045,1798.7,1798.4,4.875]
[1746049682111,5.55944479,1798.8,1798.4,10.43549224]
[1746049682618,11.11901097,1798.8,1798.4,10.43549224]
[1746049682912,11.11901097,1798.8,1798.4,13.87240431]
[1746049683117,5.55963642,1798.7,1798.4,13.87240431]
[1746049683826,11.11945327,1798.7,1798.4,8.31191207]
[1746049683987,5.55963642,1798.7,1798.4,8.31191207]
[1746049684388,5.55963642,1798.7,1798.4,9.11191207]
[1746049685887,5.55963642,1798.7,1798.4,14.67235299]
[1746049687125,5.55963642,1798.7,1798.4,5.675]
[1746049688226,11.1194575,1798.7,1798.4,5.675]
[1746049688426,11.11946301,1798.7,1798.4,5.675]
[1746049688726,5.55963642,1798.7,1798.4,5.675]
[1746049689924,5.55963642,1798.7,1798.4,11.23546413]
[1746049690224,5.55963642,1798.7,1798.4,12.91506908]
[1746049691856,5.55941749,1798.8,1798.4,12.91489743]
[1746049692525,11.11893337,1798.8,1798.4,12.91489743]
[1746049693126,11.11893337,1798.8,1798.5,0.7534]
[1746049695429,11.6233473,1798.9,1798.5,6.36902568]
[1746049695593,6.06419822,1798.9,1798.6,6.19666504]
[1746049695800,6.06419822,1798.9,1798.7,0.7534]
[1746049696103,6.06419822,1798.9,1798.8,4.876]
[1746049696306,5.55874344,1799.0,1798.8,4.876]
[1746049697347,5.55845299,1799.1,1798.8,4.876]
[1746049697501,5.55819517,1799.2,1798.9,0.4876]
[1746049697696,11.11646263,1799.2,1798.9,0.4876]
[1746049697900,6.38137983,1799.3,1798.9,0.4876]
[1746049698233,5.55817893,1799.2,1798.9,0.4876]
[1746049699525,5.55837231,1799.1,1798.9,1.2876]
[1746049701108,5.55822782,1799.2,1798.9,1.2876]
[1746049704313,11.11652659,1799.2,1798.9,1.2876]
[1746049704853,5.5583537,1799.1,1798.9,1.2876]
[1746049706347,5.55822782,1799.2,1798.9,1.2876]
[1746049706507,5.55822782,1799.2,1798.9,0.8]
[1746049707446,11.11652846,1799.2,1798.9,0.8]
[1746049708552,5.55822782,1799.2,1798.9,0.8]
[1746049710177,11.11649558,1799.2,1798.9,0.8]
[1746049713175,5.55886661,1799.0,1798.7,0.7534]
[1746049713462,5.55886661,1799.0,1798.8,4.804]
[1746049713770,5.55886661,1799.0,1798.9,0.8]
[1746049722069,5.55886661,1799.0,1798.9,5.604]
[1746049722869,5.55835158,1799.1,1798.9,5.604]
[1746049723954,11.11696628,1799.1,1798.9,5.604]
[1746049724339,5.55835158,1799.1,1798.9,5.604]
[1746049728182,11.11698314,1799.1,1798.9,5.604]
[1746049728474,5.55835158,1799.1,1798.9,5.604]
[1746049728777,11.11695158,1799.1,1798.9,5.604]
[1746049728962,12.22864674,1799.1,1798.9,5.604]
[1746049729875,12.22864745,1799.1,1798.9,5.604]
[1746049730374,6.67004674,1799.1,1798.9,5.604]
[1746049730773,12.22867181,1799.1,1798.9,4.804]
[1746049730980,5.55864369,1799.0,1798.9,4.804]
[1746049735182,12.22867181,1799.1,1798.9,4.804]
[1746049736485,6.67004674,1799.1,1799.0,4.747]
[1746049748812,5.55835158,1799.1,1799.0,4.747]
[1746049753716,5.55835158,1799.1,1799.0,5.547]
[1746049754433,5.55835158,1799.1,1799.0,4.747]
[1746049758434,5.55835158,1799.1,1799.0,5.547]
[1746049760130,5.55835158,1799.1,1799.0,4.747]
[1746049760428,6.34185158,1799.1,1799.0,4.747]
[1746049764141,6.34185158,1799.1,1799.0,5.547]
[1746049768745,5.55835158,1799.1,1799.0,4.747]
[1746049769241,5.55835158,1799.1,1799.0,4.696]
[1746049770742,5.55835158,1799.1,1798.8,0.8]
[1746049770950,11.11696671,1799.1,1798.9,4.696]
[1746049771446,5.55835158,1799.1,1798.9,4.696]
[1746049771952,11.11693047,1799.1,1798.9,4.696]
[1746049772252,5.55835158,1799.1,1798.9,4.696]
[1746049772448,5.55815524,1799.2,1799.0,0.8263]
[1746049773239,5.55815524,1799.2,1799.0,1.6263]
[1746049774757,5.55815524,1799.2,1799.1,4.696]
[1746049777164,11.62207519,1799.3,1799.1,4.696]
[1746049777862,0.9,1799.2,1799.1,4.696]
[1746049779430,0.9,1799.2,1799.1,5.88408984]
[1746049780047,5.55760387,1799.4,1799.1,5.88408984]
[1746049781368,11.11523642,1799.4,1799.1,6.68408984]
[1746049781769,5.55772102,1799.3,1799.1,6.68408984]
[1746049781994,11.11526454,1799.4,1799.1,6.68408984]
[1746049782127,11.11526454,1799.4,1799.2,0.66840898]
[1746049782336,11.11523705,1799.4,1799.2,0.66840898]
[1746049782570,5.55760387,1799.4,1799.2,0.66840898]
[1746049782970,11.11524336,1799.4,1799.2,0.66840898]
[1746049785165,5.55760387,1799.4,1799.2,0.66840898]
[1746049786092,8.55722805,1799.5,1799.2,0.66840898]
[1746049786298,14.1146005,1799.5,1799.2,0.66840898]
[1746049787908,14.11459495,1799.5,1799.2,0.66840898]
[1746049788194,0.9,1799.4,1799.3,0.8157]
[1746049788759,5.55695306,1799.6,1799.3,1.51990347]
[1746049789168,5.55710999,1799.5,1799.3,1.51990347]
[1746049789777,5.55710999,1799.5,1799.3,0.8157]
[1746049795702,5.55710999,1799.5,1799.4,4.688]
[1746049796606,5.55665141,1799.7,1799.4,4.688]
[1746049796904,5.55697711,1799.6,1799.4,4.688]
[1746049800101,5.55697711,1799.6,1799.4,5.488]
[1746049800296,5.55697711,1799.6,1799.4,6.11837]
[1746049810328,11.11335606,1799.7,1799.4,6.11837]
[1746049811108,11.11337831,1799.7,1799.4,6.11837]
[1746049811720,5.55665141,1799.7,1799.4,6.11837]
[1746049811926,5.55665141,1799.7,1799.4,11.67572984]
[1746049812234,11.62053701,1799.8,1799.5,1.16757298]
[1746049812601,11.62053701,1799.8,1799.5,7.50255941]
[1746049813526,11.62053701,1799.8,1799.5,8.30255941]
[1746049813732,5.55633879,1799.8,1799.5,8.30255941]
[1746049814233,5.55633879,1799.8,1799.5,1.94547298]
[1746049814925,11.11274296,1799.8,1799.5,1.94547298]
[1746049815229,5.55633879,1799.8,1799.5,1.94547298]
[1746049816439,11.11274299,1799.8,1799.5,1.94547298]
[1746049817648,5.55633879,1799.8,1799.5,1.94547298]
[1746049818221,5.55633879,1799.8,1799.5,2.74547298]
[1746049818708,5.55653648,1799.7,1799.5,1.16757298]
[1746049820613,5.55653648,1799.7,1799.6,4.687]
[1746049820814,5.55653648,1799.7,1799.6,5.2724573]
[1746049821748,5.55633879,1799.8,1799.6,5.2724573]
[1746049822847,5.55633879,1799.8,1799.6,6.0724573]
[1746049823324,11.11274964,1799.8,1799.6,6.0724573]
[1746049824258,5.55633879,1799.8,1799.6,6.0724573]
[1746049824555,5.55633879,1799.8,1799.7,0.60724573]
[1746049826756,14.20007536,1800.0,1799.7,0.60724573]
[1746049826944,5.5560863,1799.9,1799.7,0.60724573]
[1746049828152,5.5561729,1799.8,1799.7,0.60724573]
[1746049828359,5.5560863,1799.9,1799.7,0.60724573]
[1746049830958,5.5561729,1799.8,1799.7,0.60724573]
[1746049831552,5.5561729,1799.8,1799.7,0.87619025]
[1746049831859,5.5560863,1799.9,1799.7,0.87619025]
[1746049837344,11.11153247,1800.0,1799.7,0.87619025]
[1746049837974,11.11153247,1800.0,1799.7,1.67619025]
[1746049839275,11.11153247,1800.0,1799.8,0.7896]
[1746049839579,5.55570205,1800.0,1799.9,0.25869598]
[1746049839779,11.11155217,1800.0,1799.8,0.7896]
[1746049839965,5.55570205,1800.0,1799.9,0.25869598]
[1746049840273,5.55570205,1800.0,1799.8,0.7896]
[1746049840482,5.55570205,1800.0,1799.9,0.25869598]
[1746049840879,11.11155217,1800.0,1799.8,0.7896]
[1746049841177,5.55570205,1800.0,1799.9,4.94369598]
[1746049842181,6.33370205,1800.0,1799.9,4.94369598]
[1746049843085,5.55570205,1800.0,1799.9,4.94369598]
[1746049851886,5.5553874,1800.1,1799.9,5.43806558]
[1746049853280,5.55555555,1800.0,1799.9,5.43806558]
[1746049856398,5.55555555,1800.0,1799.9,4.94369598]
[1746049863020,8.68340996,1800.0,1799.9,0.25869598]
[1746049863217,5.55599802,1799.9,1799.7,4.681]
[1746049864648,5.55599802,1799.9,1799.8,0.25909904]
[1746049874340,6.36319802,1799.9,1799.8,0.25909904]
[1746049874502,10.7871564,1799.9,1799.8,0.25909904]
[1746049874845,5.55648163,1799.7,1799.6,4.681]
[1746049879541,5.55648163,1799.7,1799.6,4.94267148]
[1746049889628,5.50648163,1799.7,1799.6,4.94267148]
[1746049901501,5.50648163,1799.7,1799.6,0.26167148]
[1746049919403,6.61276101,1799.7,1799.6,0.26167148]
[1746049920002,5.50648163,1799.7,1799.6,0.26167148]
[1746049942058,7.82713604,1799.7,1799.6,0.26167148]
[1746049942415,5.50648163,1799.7,1799.6,0.26167148]
[1746049942915,5.50648163,1799.7,1799.6,4.93367148]
[1746049957273,5.50648163,1799.7,1799.6,0.26167148]
[1746049957574,6.61276101,1799.7,1799.6,0.26167148]
[1746049957751,7.38346101,1799.7,1799.6,0.26167148]
[1746049959482,12.70411542,1799.7,1799.6,0.26167148]
[1746049959787,5.55740802,1799.4,1799.3,4.667]
[1746049959946,5.55723893,1799.5,1799.3,4.667]
[1746049961188,5.55740802,1799.4,1799.3,4.667]
[1746049969703,5.55740802,1799.4,1799.3,4.93156406]
[1746049980533,5.55740802,1799.4,1799.3,5.68406406]
[1746049982415,11.62143715,1799.5,1799.3,5.68406406]
[1746049982904,11.62143715,1799.5,1799.3,4.93156406]
[1746049984225,5.55740802,1799.4,1799.3,4.93156406]
[1746049989919,11.62143715,1799.5,1799.3,4.93156406]
[1746049990686,11.62143715,1799.5,1799.3,5.58369047]
[1746049991715,11.62143715,1799.5,1799.4,0.8273]
[1746049992018,11.62143715,1799.5,1799.4,1.09206661]
[1746049992718,5.55723893,1799.5,1799.4,1.09206661]
[1746049995122,5.55723893,1799.5,1799.4,0.26476661]
[1746050013912,9.78871328,1799.5,1799.4,0.26476661]
[1746050014243,8.98931328,1799.5,1799.4,0.26476661]
[1746050014441,8.98931328,1799.5,1799.2,4.655]
[1746050014442,5.55771688,1799.3,1799.2,4.655]
[1746050023039,5.55864369,1799.0,1798.9,0.8304]
[1746050023236,5.55864369,1799.0,1798.9,5.4864]
[1746050023636,5.55864369,1799.0,1798.9,4.656]
[1746050029738,5.55864369,1799.0,1798.9,4.92302887]
[1746050043784,5.55864369,1799.0,1798.9,0.26702887]
[1746050043785,7.47965484,1799.0,1798.9,0.26702887]
[1746050045447,13.54385306,1799.0,1798.9,0.26702887]
[1746050052321,16.54385306,1799.0,1798.9,0.26702887]
[1746050057620,14.62284191,1799.0,1798.9,1.05622887]
[1746050057820,14.62284191,1799.0,1798.9,0.26702887]
[1746050058029,15.38744191,1799.0,1798.9,0.26702887]
[1746050063690,14.62284191,1799.0,1798.9,0.26702887]
[1746050067603,16.94349632,1799.0,1798.9,0.26702887]
[1746050067816,19.27338273,1799.0,1798.9,0.26702887]
[1746050069793,20.06918273,1799.0,1798.9,0.26702887]
[1746050070175,20.06918273,1799.0,1798.8,4.651]
[1746050070176,5.55895269,1798.9,1798.8,4.651]
[1746050070366,5.55895269,1798.9,1798.8,4.89690324]
[1746050072313,5.55895269,1798.9,1798.8,0.24590324]
[1746050072314,11.6419071,1798.9,1798.8,0.24590324]
[1746050072511,11.6419071,1798.9,1798.8,1e-08]
[1746050072512,20.26891886,1798.9,1798.8,1e-08]
[1746050072807,5.5598799,1798.6,1798.5,4.651]
[1746050073008,7.88053431,1798.6,1798.5,4.87726743]
[1746050073778,5.5598799,1798.6,1798.5,4.87726743]
[1746050073981,6.90390401,1798.6,1798.5,4.87726743]
[1746050076807,7.67470401,1798.6,1798.5,4.87726743]
[1746050077720,16.73890223,1798.6,1798.5,4.87726743]
[1746050078721,19.05955664,1798.6,1798.5,0.22626743]
[1746050079014,8.56080742,1798.3,1798.2,4.647]
[1746050079233,8.56080742,1798.3,1797.9,5.4226]
[1746050079234,5.56173526,1798.0,1797.9,5.4226]
[1746050080221,8.56173526,1798.0,1797.9,4.647]
[1746050080381,14.62593348,1798.0,1797.9,4.647]
[1746050080715,5.5620446,1797.9,1797.8,3.7500247]
[1746050080888,8.5620446,1797.9,1797.8,3.7500247]
[1746050081519,5.5620446,1797.9,1797.8,5.00428717]
[1746050082021,5.5620446,1797.9,1797.8,1.25426247]
[1746050082193,5.5620446,1797.9,1797.8,0.8017]
[1746050086647,5.5620446,1797.9,1797.8,0.96579415]
[1746050087452,5.5620446,1797.9,1797.8,0.16409415]
[1746050087655,5.56260364,1797.8,1797.6,5.4137]
[1746050087955,5.5626634,1797.7,1797.6,5.4137]
[1746050090006,5.5626634,1797.7,1797.6,5.57809644]
[1746050095270,5.5626634,1797.7,1797.6,4.81139644]
[1746050097955,5.5626634,1797.7,1797.6,5.63579644]
[1746050102265,6.6751901,1797.7,1797.6,4.81139644]
[1746050104898,9.6751901,1797.7,1797.6,4.81139644]
[1746050106570,10.09366708,1797.7,1797.6,4.81139644]
[1746050110454,8.98114038,1797.7,1797.6,4.81139644]
[1746050110652,17.36950439,1797.7,1797.6,0.16439644]
[1746050110961,8.56328233,1797.5,1797.4,4.646]
[1746050111163,14.62748055,1797.5,1797.4,4.646]
[1746050111483,16.64653981,1797.5,1797.4,4.81442547]
[1746050121790,17.42173981,1797.5,1797.4,4.81442547]
[1746050123861,17.42173981,1797.5,1797.4,4.646]
[1746050126394,17.42173981,1797.5,1797.0,5.448]
[1746050126395,5.56452061,1797.1,1797.0,5.448]
[1746050126596,5.56575944,1796.7,1796.6,9.45032422]
[1746050126976,5.56575944,1796.7,1796.6,9.1599247]
[1746050127891,5.56575944,1796.7,1796.6,5.4099]
[1746050134518,5.56666384,1796.5,1796.2,5.4242]
[1746050134719,9.31705944,1796.7,1796.6,0.16232614]
[1746050134882,5.56653629,1796.5,1796.2,7.35242375]
[1746050135088,5.56653629,1796.5,1796.3,0.1627802]
[1746050137834,5.56618497,1796.6,1796.4,0.8314]
[1746050138187,5.56618497,1796.6,1796.5,0.16247748]
[1746050141924,10.76009283,1796.6,1796.5,0.16247748]
[1746050142304,10.76009283,1796.6,1796.1,4.646]
[1746050142305,5.56730876,1796.2,1796.1,4.646]
[1746050142505,5.56730876,1796.2,1796.1,4.80014003]
[1746050142717,5.56638655,1796.5,1796.1,4.80014003]
[1746050142718,5.56717826,1796.3,1796.1,4.80014003]
[1746050142919,5.56730876,1796.2,1796.1,4.80014003]
[1746050143306,5.56730876,1796.2,1796.1,5.55064003]
[1746050143727,8.56730876,1796.2,1796.1,0.15414003]
[1746050143932,10.05882746,1796.2,1796.1,0.15414003]
[1746050144127,10.05882746,1796.2,1795.9,5.0527091]
[1746050144128,5.56792873,1796.0,1795.9,5.0527091]
[1746050144701,5.5678255,1796.1,1795.9,5.0527091]
[1746050146229,10.05900281,1796.2,1795.9,5.0527091]
[1746050147641,4.4915187,1796.2,1795.9,5.0527091]
[1746050147836,8.56792873,1796.0,1795.9,5.0527091]
[1746050149436,8.56792873,1796.0,1795.9,0.4067091]
[1746050149437,12.6525044,1796.0,1795.9,0.4067091]
[1746050149640,12.6525044,1796.0,1795.9,0.56115199]
[1746050150218,9.39782873,1796.0,1795.9,0.56115199]
[1746050150419,11.63161002,1796.2,1795.9,1.34785199]
[1746050150727,11.63044047,1796.6,1796.3,0.7867]
[1746050151030,3.0,1796.5,1796.3,0.7867]
[1746050151348,3.0,1796.5,1796.4,0.15368587]
[1746050151574,11.63044047,1796.6,1796.4,0.15368587]
[1746050151864,3.0,1796.5,1796.3,0.7867]
[1746050156955,0.7941,1796.4,1796.2,5.56713498]
[1746050157249,0.7941,1796.4,1796.1,10.21444648]
[1746050157856,6.36082133,1796.4,1796.1,10.21444648]
[1746050158460,0.7941,1796.4,1796.1,10.21444648]
[1746050160055,8.56665808,1796.5,1796.1,10.21444648]
[1746050160264,8.56665808,1796.5,1796.2,0.8018]
[1746050160445,3.0,1796.5,1796.2,6.36890496]
[1746050160647,6.85829822,1796.8,1796.2,0.8018]
[1746050160854,3.0,1796.7,1796.4,5.56656272]
[1746050161219,8.56577281,1796.7,1796.3,5.56682961]
[1746050161625,14.13179123,1796.7,1796.3,5.56682961]
[1746050162262,8.56577281,1796.7,1796.3,5.56682961]
[1746050162730,5.56616546,1796.6,1796.2,6.36893835]
[1746050162925,5.56616546,1796.6,1796.2,8.02724939]
[1746050163262,5.56616546,1796.6,1796.3,5.56698446]
[1746050164574,5.56616546,1796.6,1796.4,0.15494304]
[1746050165028,5.56616546,1796.6,1796.3,6.36698446]
[1746050165266,8.56616546,1796.6,1796.4,0.15494304]
[1746050165512,8.56616546,1796.6,1796.3,0.8]
[1746050165694,10.79615944,1796.6,1796.4,0.15494304]
[1746050165994,10.79615944,1796.6,1796.2,6.3688931]
[1746050166203,5.56642428,1796.5,1796.2,0.8018]
[1746050166702,5.56642428,1796.5,1796.2,6.36909954]
[1746050167805,10.79615944,1796.6,1796.2,6.36909954]
[1746050168801,9.97935944,1796.6,1796.2,6.36909954]
[1746050169206,9.97935944,1796.6,1796.2,11.93622507]
[1746050169396,3.0,1796.6,1796.3,5.56688606]
[1746050170803,3.0,1796.8,1796.5,5.56616397]
[1746050171106,3.0,1796.8,1796.5,10.97786397]
[1746050171493,3.0,1796.8,1796.7,8.0]
[1746050171782,10.10017487,1796.8,1796.7,8.0]
[1746050172932,6.06419822,1797.2,1796.8,6.33202904]
[1746050173134,11.12753181,1797.4,1797.0,5.56469265]
[1746050173303,5.56370133,1797.4,1797.0,5.56469265]
[1746050173707,3.0,1797.3,1797.1,6.33119723]
[1746050174028,3.0,1797.3,1797.1,0.7667]
[1746050174326,4.04637567,1797.5,1797.1,6.33111919]
[1746050174527,9.6098186,1797.5,1797.2,13.56420849]
[1746050174832,3.0,1797.4,1797.2,8.0]
[1746050176393,11.62733002,1797.6,1797.2,14.99721536]
[1746050176723,3.0,1797.5,1797.3,18.2088593]
[1746050177100,6.06419822,1797.6,1797.3,18.20872423]
[1746050177304,6.06419822,1797.6,1797.4,6.3933655]
[1746050177500,6.06419822,1797.6,1797.4,8.85357855]
[1746050178638,6.06419822,1797.6,1797.5,8.0]
[1746050179510,6.06419822,1797.6,1797.5,8.14960962]
[1746050180254,14.62666007,1797.8,1797.5,8.14960962]
[1746050180442,3.0,1797.7,1797.5,8.14960962]
[1746050180622,3.0,1797.7,1797.5,9.84992844]
[1746050181650,3.0,1797.7,1797.6,8.0]
[1746050181954,3.0,1797.7,1797.6,8.14945846]
[1746050187859,8.5626634,1797.7,1797.6,8.14945846]
[1746050209206,9.3316634,1797.7,1797.6,8.14945846]
[1746050209415,11.75296331,1797.7,1797.6,8.14945846]
[1746050209577,17.81716153,1797.7,1797.6,0.14945846]
[1746050209971,9.33228233,1797.5,1797.4,8.0]
[1746050210244,12.586958,1797.5,1797.4,8.0]
[1746050210508,5.5639014,1797.3,1797.2,4.641]
[1746050211578,5.5639014,1797.3,1797.2,12.641]
[1746050213881,10.28308354,1797.3,1797.2,12.641]
[1746050221339,8.5639014,1797.3,1797.2,12.641]
[1746050224516,8.5639014,1797.3,1797.2,12.78673923]
[1746050232962,8.5639014,1797.3,1797.2,8.14573923]
[1746050253171,9.3871014,1797.3,1797.2,8.14573923]
[1746050253477,15.45129962,1797.3,1797.2,8.14573923]
[1746050253775,17.82684422,1797.3,1797.2,8.0]
[1746050253975,17.82684422,1797.3,1797.2,8.1405578]
[1746050255327,15.45129962,1797.3,1797.2,8.1405578]
[1746050257657,15.45129962,1797.3,1797.2,0.1405578]
[1746050258387,9.36481099,1797.2,1797.1,8.0]
[1746050258682,12.62102895,1797.2,1797.1,1e-08]
[1746050258898,15.04594181,1797.2,1797.1,0.11824623]
[1746050259274,15.59594181,1797.2,1797.1,1e-08]
[1746050259475,21.66014003,1797.2,1797.1,1e-08]
[1746050259679,3.8006,1797.0,1796.9,8.0]
[1746050259881,9.36543027,1797.0,1796.9,8.0]
[1746050260192,9.36543027,1797.0,1796.7,4.641]
[1746050260193,17.47262358,1797.0,1796.7,4.641]
[1746050260353,8.56606924,1796.6,1796.5,3.74729865]
[1746050260551,5.56668893,1796.4,1796.3,4.639]
[1746050260892,8.56761872,1796.1,1796.0,4.87503211]
[1746050261678,8.98172222,1796.1,1796.0,4.87503211]
[1746050262078,10.55064367,1796.1,1796.0,4.87503211]
[1746050262803,16.61484189,1796.1,1796.0,4.87503211]
[1746050263681,5.56792873,1796.0,1795.9,0.4067091]
[1746050264383,5.56792873,1796.0,1795.9,0.51456399]
[1746050268290,11.63212695,1796.0,1795.9,0.51456399]
[1746050272988,15.66154491,1796.0,1795.9,0.51456399]
[1746050274330,16.56154491,1796.0,1795.9,0.51456399]
[1746050274532,11.63212695,1796.0,1795.9,0.51456399]
[1746050274898,9.06419822,1796.0,1795.9,1.34386399]
[1746050275591,9.06419822,1796.0,1795.9,2.03510391]
[1746050275998,6.06419822,1796.0,1795.9,2.03510391]
[1746050276335,6.06419822,1796.0,1795.9,7.60334267]
[1746050276634,5.56715455,1796.3,1796.0,0.8239]
[1746050276831,5.56715455,1796.3,1796.0,6.39174977]
[1746050277036,3.0,1796.3,1796.1,0.11273204]
[1746050277195,3.0,1796.3,1796.2,0.8239]
[1746050277395,5.56699883,1796.3,1796.2,0.93648064]
[1746050277596,11.63105462,1796.4,1796.2,0.93648064]
[1746050278334,17.19800073,1796.4,1796.2,0.93648064]
[1746050278539,11.63105462,1796.4,1796.2,0.93648064]
[1746050278828,5.56699883,1796.3,1796.2,0.93648064]
[1746050279028,5.56699883,1796.3,1796.2,0.11258064]
[1746050279437,5.56749021,1796.2,1796.0,4.641]
[1746050280035,11.13506885,1796.2,1796.0,4.641]
[1746050280943,5.56761872,1796.1,1796.0,4.641]
[1746050281140,5.56792873,1796.0,1795.9,0.4067091]
[1746050281442,11.63212695,1796.0,1795.9,0.4067091]
[1746050281647,14.63212695,1796.0,1795.9,0.4067091]
[1746050281843,17.31991805,1796.0,1795.9,0.4067091]
[1746050282947,18.21991805,1796.0,1795.9,0.4067091]
[1746050284657,18.21991805,1796.0,1795.9,0.52019685]
[1746050287623,18.97081805,1796.0,1795.9,0.52019685]
[1746050287945,18.97081805,1796.0,1795.9,0.4067091]
[1746050288334,18.97081805,1796.0,1795.1,6.44232115]
[1746050288335,0.55,1795.9,1795.1,0.87178713]
[1746050288653,5.57147225,1794.9,1794.6,0.8276]
[1746050289050,5.57147225,1794.9,1794.7,0.10837296]
[1746050289817,3.0,1795.0,1794.7,0.10837296]
[1746050290015,5.57001462,1795.4,1795.0,5.57093339]
[1746050290326,5.57024414,1795.3,1795.1,1.49527673]
[1746050290527,5.57024414,1795.3,1795.1,0.93818339]
[1746050290715,11.14059655,1795.3,1795.1,0.93818339]
[1746050290911,5.57024414,1795.3,1795.1,0.93818339]
[1746050292149,5.57040998,1795.2,1795.1,0.93818339]
[1746050293327,5.57040998,1795.2,1795.1,0.11058339]
[1746050293648,7.01009719,1795.2,1795.1,0.11058339]
[1746050294527,13.07429541,1795.2,1795.1,0.11058339]
[1746050295829,5.57134102,1794.9,1794.8,4.641]
[1746050296035,11.14244518,1795.0,1794.8,4.75163569]
[1746050296353,5.57116575,1795.0,1794.8,4.75163569]
[1746050297047,5.57134102,1794.9,1794.8,4.75163569]
[1746050317945,10.5098917,1794.9,1794.8,4.75163569]
[1746050318146,5.57294016,1794.4,1794.2,0.005]
[1746050318680,14.63713838,1794.4,1794.3,0.12539389]
[1746050322688,15.46143838,1794.4,1794.3,0.12539389]
[1746050323984,15.46143838,1794.4,1794.2,0.005]
[1746050323985,8.57320403,1794.3,1794.2,0.005]
[1746050324148,10.67666827,1794.3,1794.2,0.005]
[1746050324352,10.67666827,1794.3,1794.2,0.11291855]
[1746050324787,10.67666827,1794.3,1794.2,0.005]
[1746050325783,13.93288623,1794.3,1794.2,0.005]
[1746050326900,20.75158445,1794.3,1794.2,0.005]
[1746050330429,20.75158445,1794.3,1794.2,0.1175497]
[1746050330685,20.75158445,1794.3,1794.2,0.005]
[1746050331656,20.75158445,1794.3,1794.1,0.4117091]
[1746050331657,9.90891465,1794.2,1794.1,1e-08]
[1746050331893,11.4340731,1794.2,1794.1,1e-08]
[1746050332069,5.57506829,1793.7,1793.6,4.674]
[1746050332268,11.63926651,1793.7,1793.6,4.674]
[1746050332467,5.57556496,1793.6,1793.4,18.41]
[1746050332666,6.06419822,1793.7,1793.6,5.57537912]
[1746050332870,6.06419822,1793.7,1793.6,6.40167912]
[1746050333072,6.06419822,1793.7,1793.6,11.07567912]
[1746050333867,6.06419822,1793.7,1793.6,5.5003]
[1746050335075,6.06419822,1793.7,1793.6,11.07567912]
[1746050335272,6.06419822,1793.7,1793.6,7.2454231]
[1746050335796,5.57478425,1793.8,1793.6,5.5003]
[1746050335984,11.14917405,1793.9,1793.6,5.5003]
[1746050336182,5.57445416,1793.9,1793.6,5.5003]
[1746050337964,6.06419822,1794.1,1793.8,6.3730135]
[1746050338298,5.57333359,1794.3,1794.0,0.7985]
[1746050338475,3.0,1794.2,1794.0,0.7985]
[1746050339208,3.0,1794.2,1794.0,6.37262879]
[1746050339388,3.0,1794.2,1794.0,11.04762879]
[1746050339990,8.57323465,1794.3,1794.0,11.04762879]
[1746050340222,3.0,1794.3,1794.1,5.57371872]
[1746050340382,5.57305597,1794.4,1794.1,5.57371872]
[1746050340693,5.57305597,1794.4,1794.0,12.70963883]